Cogmind - Beta 14 @@@ ROGUE MODE // 2024.08.27 @ 21:21:55 Player: MOPO3 Result: Destroyed by D-53 Grenadier with Mini Grenade Launcher Performance ------------- Evolutions (1) 500 Regions Visited (4) 800 Robots Destroyed (28) 140 Value Destroyed (700) 700 Prototype IDs (0) 0 Alien Tech Used (0) 0 Bonus (0) 0 TOTAL SCORE: 2140 Bonus ------- None Cogmind --------- Core Integrity 0/400 Matter 300/300 Energy 338/350 System Corruption 1% Temperature Cool (0) Movement Core (100) Ox1 Location -9/Mines Parts ------- > --- POWER (1) -------- (None) > --- PROPULSION (3) --- (None) > --- UTILITY (3) ------ High-capacity Battery > --- WEAPON (2) ------- (None) > --- INVENTORY (5) ---- Ion Engine Light Ion Engine Improved Treads Aluminum Leg Mining Laser Peak State ------------ > --- POWER ------------ Ion Engine > --- PROPULSION ------- Aluminum Leg Aluminum Leg Aluminum Leg > --- UTILITY ---------- Small Storage Unit Terrain Scanner Hacking Suite > --- WEAPON ----------- Assault Rifle Light Assault Rifle > --- INVENTORY -------- Light Ion Engine High-capacity Battery Utility Shielding EM Pulse Gun [Rating: 11] Favorites ----------- Power Ion Engine Engine Ion Engine Propulsion Aluminum Leg Leg Aluminum Leg Wheel Wheel Flight Unit Flight Unit Utility Small Storage Unit Device Terrain Scanner Storage Small Storage Unit Hackware Hacking Suite Protection Utility Shielding Weapon Assault Rifle Energy Gun EM Pulse Gun Ballistic Gun Assault Rifle Launcher Grenade Launcher Special Weapon Welding Torch Build | -11 -10 -10 -9 -9 ------- Run | Yrd Mat Min Mat Min Slots Evolved 2 | . . . 2 . Power . | . . . . . Propulsion 1 | . . . 1 . Utility 1 | . . . 1 . Weapon . | . . . . . Parts Attached 36 | 6 7 . 10 13 Power 3 | 1 . . . 2 Engine 3 | 1 . . . 2 Core . | . . . . . Reactor . | . . . . . Propulsion 14 | 2 . . 7 5 Treads . | . . . . . Leg 6 | 2 . . 4 . Wheel 3 | . . . . 3 Hover . | . . . . . Flight 5 | . . . 3 2 Utility 7 | 1 2 . 2 2 Device 1 | . 1 . . . Storage 3 | 1 1 . . 1 Processor . | . . . . . Hackware 1 | . . . 1 . Protection 2 | . . . 1 1 Artifact . | . . . . . Weapon 12 | 2 5 . 1 4 Energy Gun 3 | . 1 . . 2 Energy Cannon . | . . . . . Ballistic Gun 5 | 2 2 . 1 . Ballistic Cannon . | . . . . . Launcher 3 | . 1 . . 2 Special Weapon 1 | . 1 . . . Impact Weapon . | . . . . . Slashing Weapon . | . . . . . Piercing Weapon . | . . . . . Special Melee Weapon . | . . . . . Unidentified Prototypes . | . . . . . Parts Lost 21 | . . . 9 12 Power 3 | . . . 1 2 Propulsion 7 | . . . 3 4 Utility 4 | . . . 2 2 Weapon 7 | . . . 3 4 Highest Loss Streak 10 | . . . 6 10 To Critical Strikes . | . . . . . Average Slot Usage (%) 93 | . 96 100 94 89 Engine 11 | . 14 14 10 10 Leg 19 | . 28 28 27 6 Wheel 2 | . . . . 7 Flight 7 | . . . 1 16 Device 4 | . 3 14 10 . Storage 17 | . 21 14 11 21 Hackware 1 | . . . 3 . Protection 6 | . . . 6 10 Energy Gun 2 | . 2 . . 5 Ballistic Gun 10 | . 18 14 16 . Launcher 7 | . 6 14 4 10 Peak Build Rating 11 | 6 7 7 11 11 Average Rating 8 | 5 6 7 9 8 On Entrance 4 | . 6 7 7 2 Naked Turns . | . . . . . Heaviest Build 19 | 13 19 16 17 18 Greatest Support 36 | 20 20 20 30 36 Greatest Overweight (x) 5 | 4 . . 1 5 Average Overweight (x) . | . . . . . Largest Inventory Capacity 8 | 8 8 8 8 8 Average Capacity 7 | 7 8 8 8 7 Most Carried 8 | 5 8 7 7 8 Average Carried 3 | 1 3 7 4 3 Final Capacity 8 | 8 8 8 8 5 Final Carried 7 | 1 7 7 7 5 Class Distribution -------------------- 69% | Mutant 30% | Scavenger-Mutant Dominant Class ---------------- Mutant | -10/Materials Mutant | -10/Mines Mutant | -9/Materials Scavenger-Mutant | -9/Mines Resources | -11 -10 -10 -9 -9 ----------- Run | Yrd Mat Min Mat Min Matter Collected 915 | 203 223 . 187 302 Remotely . | . . . . . Salvage Created 890 | . 206 . 216 468 Parts 38 | . 9 . 12 17 Haulers Intercepted 1 | . 1 . . . Recyclers Shooed 3 | . . . . 3 Parts Field Recycled . | . . . . . Retrieved Matter . | . . . . . Parts Self-Destructed . | . . . . . Prevented . | . . . . . Kills | -11 -10 -10 -9 -9 ------- Run | Yrd Mat Min Mat Min Combat Hostiles Destroyed 28 | . 6 . 7 15 Guns 9 | . 2 . 7 . AOE 19 | . 4 . . 15 Classes Destroyed 12 | . 2 . 5 5 Worker 1 | . . . . 1 Builder 1 | . . . . 1 Tunneler 3 | . . . . 3 Hauler 1 | . 1 . . . Recycler 3 | . . . . 3 Operator 1 | . . . 1 . Watcher 1 | . . . 1 . Swarmer 3 | . . . 3 . Grunt 12 | . 6 . 2 4 Brawler 1 | . . . 1 . Sentry 1 | . . . 1 . Assembled 11 | . . . . 11 Best Kill Streak 11 | . 3 . 3 11 Combat Bots Only 11 | . 2 . 2 11 Max Kills in Single Turn 5 | . 2 . 2 5 Gunslinging . | . . . . . Exploded 5 | . 1 . . 5 Melee . | . . . . . Uniques/NPCs Destroyed . | . . . . . Combat | -11 -10 -10 -9 -9 -------- Run | Yrd Mat Min Mat Min Hostile Shots Fired 194 | . 35 . 96 63 Missed 63 | . 18 . 27 18 Damage Taken 1732 | . 238 . 736 758 Core 468 | . 64 . 147 257 Absorbed by Shields . | . . . . . Redirected to Shielding 28 | . . . . 28 Regen/Repaired (Parts) 63 | . . . 63 . Core Remaining (%) 87 | 100 . 74 . . Volleys Fired 71 | . 19 . 17 35 Largest 2 | . 2 . 2 2 Hottest 63 | . 60 . 50 63 Shots Fired 103 | . 32 . 34 37 Gun 62 | . 18 . 28 16 Cannon . | . . . . . Launcher 35 | . 8 . 6 21 Special 6 | . 6 . . . Kinetic 41 | . 13 . 28 . Thermal 22 | . 6 . . 16 Explosive 33 | . 8 . 6 19 Electromagnetic 7 | . 5 . . 2 Robot Hit Streak 22 | . 10 . 22 7 Robot Miss Streak 2 | . 2 . 2 2 Penetration Max . | . . . . . Secondary Targets . | . . . . . Shots Hit Robots 63 | . 20 . 18 25 Core Hits 81 | . 18 . 17 46 Critical Kills . | . . . . . Critical Parts Destroyed 1 | . . . 1 . Critical Strikes 1 | . . . 1 . Destroy 1 | . . . 1 . Melee Attacks . | . . . . . Impact . | . . . . . Slashing . | . . . . . Piercing . | . . . . . Sneak Attacks . | . . . . . Combat Hostiles . | . . . . . Follow-up Attacks . | . . . . . Damage Inflicted 2549 | . 773 . 314 1462 Guns 514 | . 177 . 205 132 Cannons . | . . . . . Explosions 2027 | . 596 . 104 1327 Melee . | . . . . . Ramming 8 | . . . 5 3 Kinetic 331 | . 126 . 205 . Thermal 132 | . . . . 132 Explosive 1718 | . 427 . 104 1187 Electromagnetic 360 | . 220 . . 140 Impact . | . . . . . Slashing . | . . . . . Piercing . | . . . . . Highest Corruption 1 | . . . . 1 Average Corruption 1 | . . . . 1 Corruption Purged . | . . . . . Corruption Blocked . | . . . . . Overload Shots . | . . . . . Overflow Damage 45 | . 13 . . 32 Projectiles . | . . . . . Explosions 45 | . 13 . . 32 Melee . | . . . . . Knockbacks . | . . . . . Impact . | . . . . . Kinetic . | . . . . . Secondary . | . . . . . Self-Inflicted Damage 79 | . 32 . . 47 Shots 3 | . 1 . . 2 Rammed . | . . . . . Targets Rammed 2 | . . . 1 1 Kicked 2 | . . . 1 1 Crushed . | . . . . . Highest Temperature 36 | . 36 . 10 33 Average Temperature 13 | . 15 . 4 13 Received Heat Transfer 496 | . 114 . 222 160 Siege Activations . | . . . . . Robots Corrupted . | . . . . . Combat Hostiles . | . . . . . Parts Fried . | . . . . . Impact Corruptions . | . . . . . Robots Melted . | . . . . . Combat Hostiles . | . . . . . Parts Melted . | . . . . . Heat Transferred 300 | . . . . 300 Parts Sabotaged . | . . . . . Parts Stolen . | . . . . . Parts Stripped . | . . . . . Power Chain Reactions . | . . . . . Alert | -11 -10 -10 -9 -9 ------- Run | Yrd Mat Min Mat Min Peak Influence 265 | . 265 103 260 167 Initial 103 | . . 103 39 52 Average 95 | . 92 103 126 90 Maximum Alert Level 1 | . 1 . 1 . Low Security (%) 93 | 100 90 100 86 100 Level 1 6 | . 9 . 13 . Level 2 . | . . . . . Level 3 . | . . . . . Level 4 . | . . . . . Level 5 . | . . . . . High Security . | . . . . . Max Security . | . . . . . Squads Dispatched 3 | . . . 3 . Investigation 1 | . . . 1 . Extermination . | . . . . . Reinforcement 2 | . . . 2 . Assault . | . . . . . Garrison . | . . . . . Intercept . | . . . . . Searches Triggered . | . . . . . Construction Impeded . | . . . . . Haulers Reinforced . | . . . . . Active Scanning Responses . | . . . . . Cargo Convoy Interrupts . | . . . . . Stealth | -11 -10 -10 -9 -9 --------- Run | Yrd Mat Min Mat Min Distress Signals 6 | . 3 . 3 . Communications Jammed . | . . . . . Distress Signals . | . . . . . Times Spotted 66 | . 13 . 22 31 Peak Tracking Total 16 | . 4 . 13 16 Tactical Retreats 2 | . . . 1 1 Traps | -11 -10 -10 -9 -9 ------- Run | Yrd Mat Min Mat Min Traps Triggered . | . . . . . Indirectly . | . . . . . Trap Hack Attempts . | . . . . . Triggered . | . . . . . Disarmed . | . . . . . Reprogrammed . | . . . . . Reused . | . . . . . Traps Extracted . | . . . . . Installed . | . . . . . Triggered . | . . . . . Machines | -11 -10 -10 -9 -9 ---------- Run | Yrd Mat Min Mat Min Machines Disabled 5 | . 1 . 3 1 Max in Single Turn 2 | . 1 . 2 1 Machines Repaired . | . . . . . Machines Dismantled . | . . . . . Machines Sabotaged . | . . . . . Overloaded Fab Kills . | . . . . . Hacking | -11 -10 -10 -9 -9 --------- Run | Yrd Mat Min Mat Min Machines Accessed 5 | . 2 . 2 1 Terminals 4 | . 2 . 1 1 Fabricators . | . . . . . Repair Stations 1 | . . . 1 . Recycling Units . | . . . . . Scanalyzers . | . . . . . Garrison Access . | . . . . . Total Hacks 12 | . 4 . 5 3 Successful 7 | . 2 . 4 1 Failed 5 | . 2 . 1 2 Catastrophic . | . . . . . Database Lockouts . | . . . . . Manual 4 | . . . 1 3 Terminals 9 | . 4 . 2 3 Fabricators . | . . . . . Repair Stations 3 | . . . 3 . Recycling Units . | . . . . . Scanalyzers . | . . . . . Garrison Access . | . . . . . Terminal Hacks 4 | . 2 . 1 1 Record 1 | . . . 1 . Alert Level 1 | . . . . 1 Locate Traps 1 | . 1 . . . Recall Investigation 1 | . 1 . . . Fabricator Hacks . | . . . . . Repair Station Hacks 3 | . . . 3 . Scan Component 2 | . . . 2 . Repair 1 | . . . 1 . Recycling Unit Hacks . | . . . . . Scanalyzer . | . . . . . Garrison Access Hacks . | . . . . . Unauthorized Hacks . | . . . . . Terminals . | . . . . . Fabricators . | . . . . . Repair Stations . | . . . . . Recycling Units . | . . . . . Scanalyzers . | . . . . . Garrison Access . | . . . . . Data Cores Recovered . | . . . . . Used . | . . . . . Hacking Detections 4 | . 2 . 2 . Full Trace Events 2 | . 1 . 1 . Feedback Events . | . . . . . Feedback Blocked . | . . . . . Robot Schematics Acquired . | . . . . . Robots Built . | . . . . . Authchips . | . . . . . Time . | . . . . . Total Robot Build Rating . | . . . . . Part Schematics Acquired . | . . . . . Parts Built . | . . . . . Authchips . | . . . . . Time . | . . . . . Total Part Build Rating . | . . . . . Parts Repaired 1 | . . . 1 . Time 26 | . . . 26 . Parts Recycled . | . . . . . Recycled Matter . | . . . . . Retrieved Matter . | . . . . . Retrieved Components . | . . . . . Parts Scanalyzed . | . . . . . Part Schematics Acquired . | . . . . . Parts Damaged . | . . . . . Bothacking | -11 -10 -10 -9 -9 ------------ Run | Yrd Mat Min Mat Min Used RIF Installer . | . . . . . Robots Hacked . | . . . . . Non-combat . | . . . . . Combat . | . . . . . Robot Hacks Applied . | . . . . . Relay Couplers Released . | . . . . . Fabnet Peak Effective % . | . . . . . Robots Rewired . | . . . . . Allies Hacked . | . . . . . Hacks Repelled . | . . . . . Allies | -11 -10 -10 -9 -9 -------- Run | Yrd Mat Min Mat Min Total Allies . | . . . . . Largest Group . | . . . . . Highest-Rated Group . | . . . . . Highest-Rated Ally . | . . . . . Total Orders . | . . . . . Ally Attacks . | . . . . . Total Damage . | . . . . . Kills . | . . . . . Allies Corrupted . | . . . . . Allies Melted . | . . . . . Intel | -11 -10 -10 -9 -9 ------- Run | Yrd Mat Min Mat Min Robot Analysis Total . | . . . . . Derelict Logs Recovered 1 | . . . . 1 Drone Launches . | . . . . . Drone Recoveries . | . . . . . Exploration | -11 -10 -10 -9 -9 ------------- Run | Yrd Mat Min Mat Min Turns Passed 1832 | 145 389 48 592 658 Spaces Moved 966 | 35 250 41 277 363 Core 30 | 15 . . . 15 Treads . | . . . . . Legs 786 | 20 250 41 277 198 Wheels 150 | . . . . 150 Hover . | . . . . . Flight . | . . . . . Fastest Speed 50 | 50 120 120 120 80 Average Speed 133 | 130 120 120 125 150 Slowest Speed 300 | 250 120 120 190 300 Overloaded Moves . | . . . . . Propulsion Burnouts . | . . . . . Robots Hopped . | . . . . . Cave-ins Triggered . | . . . . . Exploration Rate (%) 26 | 5 32 19 22 56 Regions Visited 4 Branch Regions 2 Pre-discovered Areas . | . . . . . Known Exits Taken . | . . . . . Unknown Exits Taken 4 | 1 1 1 1 . Scrap Searched 1 | . . . . 1 Spaces Dug . | . . . . . Terrain Destroyed 159 | . 20 . 32 107 Melee . | . . . . . Projectile . | . . . . . AOE 159 | . 20 . 32 107 Terrain Rammed . | . . . . . Walls Destroyed . | . . . . . Machines Disabled . | . . . . . Actions | -11 -10 -10 -9 -9 --------- Run | Yrd Mat Min Mat Min Total 1403 | 134 304 40 486 439 Wait 280 | 87 18 . 175 . Move 962 | 34 249 40 276 363 Hop . | . . . . . Pick Up 41 | 7 9 . 6 19 Fast Attach . | . . . . . Attach 23 | 6 1 . 5 11 Detach . | . . . . . Swap 13 | . 6 . 5 2 Drop 11 | . 2 . 1 8 Fire 71 | . 19 . 17 35 Melee . | . . . . . Ram . | . . . . . Kick 2 | . . . 1 1 Crush . | . . . . . Escape Stasis . | . . . . . Rewire . | . . . . . Trap . | . . . . . Miscellaneous . | . . . . . Route ------- -11/Scrapyard -10/Materials -10/Mines -9/Materials -9/Mines (discovered 1 exit: [*Zio]) History --------- Turn | Location | Event 2 | -11/Scrapyard | Met Revision 17 15 | -11/Scrapyard | Discovered new exit (range 16) 146 | -11/Scrapyard | Entered Materials 318 | -10/Materials | Build established: Mutant 505 | -10/Materials | Discovered new exit (range 14) 535 | -10/Materials | Entered Mines 568 | -10/Mines | Discovered new exit (range 15) 583 | -10/Mines | Entered Materials 583 | -9/Materials | Evolved 2 slots: Propulsion x1, Utility x1 1145 | -9/Materials | Repaired Aluminum Leg? 1153 | -9/Materials | Discovered new exit (range 12) 1175 | -9/Materials | Entered Mines 1176 | -9/Mines | YI-UF0 nonchalantly dropped a Grenade Launcher on the ground 1198 | -9/Mines | Lost 6 parts (1p1n2u2w) 1410 | -9/Mines | A Derelict revealed a hidden shortcut to a safe place 1441 | -9/Mines | Learned Materials stockpile data 1472 | -9/Mines | Build established: Scavenger-Mutant 1774 | -9/Mines | Assembled infested the area 1775 | -9/Mines | Found a damaged Exp. Sensor Array with a note attached 1779 | -9/Mines | Assisted by a Guerilla fighting off Assembled 1781 | -9/Mines | Found Prototype Device 1803 | -9/Mines | Core integrity fell below 50% 1833 | -9/Mines | Destroyed 11 combat bots 1833 | -9/Mines | Core integrity fell below 20% 1833 | -9/Mines | Destroyed by D-53 Grenadier with Mini Grenade Launcher Last Messages --------------- as-90840 destroyed. EMP Blaster destroyed. as-61759 destroyed. as-00064 destroyed. as-48563 destroyed. Grenade Launcher destroyed. Acquired 33 matter. Com. Wheel destroyed. Acquired Mining Laser. Sml. Storage Unit destroyed. System corrupted by crushing effect (+1). C-30 ARC bursts open, deploying its payload. D-53 Grenadier unfolds itself. K-01 Serf collects debris. as-60611 destroyed. as-80325 destroyed. as-72834 destroyed. as-89483 destroyed. R-06 Scavenger destroyed. Wheel destroyed. Map ----- +----------------------------------------------------+ | # #??????## ##????????????????????? | | ### ######### #?????## #????????????????????? | | ??## ##???????# #????## #????????????????????? | | ???###????????# #??### ##????????????????????? | | ????????####### #### ####?????????????????????? | | ????????# ##????????????????????????? | | ???????## ##############?????????????????????????? | | ???????# ##?????????????????????????????????????? | | ???????# #?????????????????????????????????????? | | ???##### ###???????????????????????????????????? | | ???# ################## ?????????????? | | ???# "" ?????????????? | | ???# " ?????????????? | | ???# " ####### ########????????????????????? | | ???# ###### #???????????????????????????? | | ???### ### #???????????????????????????? | | ?????## # ## ######???????????????????????????? | | ?????##### #### ####?????????????????????????????? | | ?????????##### > ##????????????????????????????? | | ????????????# #########????????????????????? | | ????????????# #????????????????????? | | ????????????# "% #????????????????????? | | ????????????# ## ######!*#????????????????????? | | ????????????#############=%!#????????????????????? | | ??????????????????### =dd##???????????????????? | | ??????????????????# ##@ ##??????????????????? | | ??????????????????# # # #??????????????????? | | ??????????????????# # ##??????????????????? | | ??? ?????????????# # # #??????????????????? | | ?? ????????##??## # ##??????????????????? | | ? ????#### ##### ### ???????????????????? | | ?# ##### # ### #??????????????????? | | ??# # # ## ### % #???????????? ?????? | | ???# # !% #???????????? ?????? | | ??## * a##### #?? ????? | | ??# %a! =% % #???? | | ??# !* # ### % #???? | | ???# ## # #???????? #???? | | ???## # #?????????" ????? | | ????##### ## ## #?????????# ????? | | ??????### #### ## ###!#?????????# ????? | | ??????# ##??# ######%#?????????? ##??? | | ?????# ##???# #??## !##????????? "#??? | | ????# #????# #??# #???###??? #??? | | ????# ##????# #??# ##?# ##??#" #??? | | ????# ##????? ??# ## #??#"!#??? | | ????## #?????? ??# % ####=%##?? | | ?????# #?????# #?# % % ! ### | | ?????# ##????? #?## % % | | ?????# #####??????# #??## % # ##= | +----------------------------------------------------+ Best States ------------- Heat Dissipation 28 Energy Generation 10 Energy Capacity 500 Matter Stores 300 Matter Capacity 300 Sight Range 16 Terrain Scan Range 14 Terrain Scan Density 10 Utility Shielding 33 Evasion (%) 55 Offensive Hacking 10 Item Schematics ----------------- None Robot Schematics ------------------ None Fabricated ------------ Nothing Alien Tech Used ----------------- None Achievements -------------- None Challenges ------------ None Game ------ Seed AlloyIonChronowheel Manual? 0 Play Time 00:22:50 Cumulative 5.8 hours Start 2024.08.27 @ 21:00:58 End 2024.08.27 @ 21:21:55 Sessions 1 Manual Loads 0 Difficulty Rogue Special Mode None Game No. 11 Rogue 11 Adventurer 0 Explorer 0 Win Type - Total 0 Types 0/0/0/0/0/0/0/0/0 Lore% 4 Gallery% 11 Achievement% 13 Wizard Run 0 Options --------- Layout 1 ASCII 0 Keyboard 0 Movement Numpad Keybinds 0 Fullscreen 1 Font 24/CogTall Map View 50x35 Zoom Use 0% Tactical HUD 0 Map Filters NONE Filters NONE Steam 1 RUN: 35868827-27bb-4407-9319-86aebb5623f7